fUST/lending_fUST_20250901
["ID","MTS","AMOUNT","RATE_DAILY","PERIOD"]
[382540406,1756660798299,-239.25661785,0.00017,2]
[382540407,1756660803949,-223.55501808,0.00017,2]
[382540408,1756660804907,5000.0,0.00017,2]
[382540409,1756660805597,-165.95271635,0.00017,2]
[382540410,1756660809380,-239.00746515,0.00017,2]
[382540411,1756660813366,-153.9573891,0.00017,2]
[382540412,1756660815740,-197.77050349,0.00017,2]
[382540413,1756660821310,-198.24171845,0.00017,2]
[382540414,1756660822383,151.0,0.0001657,2]
[382540415,1756660823135,156.587,0.0001657,2]
[382540416,1756660823172,-300.0,0.00017,2]
[382540417,1756660824223,199.36998705,0.0001657,2]
[382540418,1756660825898,-159.46790154,0.00017,2]
[382540419,1756660827567,4178.96438149,0.00017,2]
[382540420,1756660829869,-221.79796346,0.00017,2]
[382540421,1756660833227,-265.31504505,0.00017,2]
[382540422,1756660837607,-284.49175939,0.00017,2]
[382540423,1756660840442,-49.43085061,0.00017,2]
[382540424,1756660840466,-133.18185625,0.00017,2]
[382540425,1756660842197,-154.49997804,0.00017,2]
[382540426,1756660844514,-191.80034705,0.00017,2]
[382540427,1756660847408,-350.45725593,0.00017,2]
[382540428,1756660854193,-236.51502708,0.0001683,2]
[382540429,1756660857671,-376.78368623,0.0001683,2]
[382540431,1756660861947,-281.9412158,0.0001683,2]
[382540432,1756660865654,-185.68294368,0.0001683,2]
[382540433,1756660868635,-152.36559646,0.0001683,2]
[382540434,1756660870357,-179.81912315,0.0001683,2]
[382540435,1756660874741,-255.10262731,0.0001683,2]
[382540436,1756660877460,-154.29976482,0.0001683,2]
[382540437,1756660880563,-291.07806054,0.0001683,2]
[382540439,1756660886803,-163.18205561,0.0001683,2]
[382540440,1756660888971,-154.0452109,0.0001683,2]
[382540441,1756660892195,-177.70468015,0.0001683,2]
[382540442,1756660894336,-168.0,0.0001683,2]
[382540446,1756660896334,-157.13392345,0.0001683,2]
[382540447,1756660898441,-216.20289512,0.0001683,2]
[382540448,1756660901460,-210.33691448,0.0001683,2]
[382540449,1756660903530,-213.20480895,0.0001683,2]
[382540450,1756660906245,-266.59370059,0.0001683,2]
[382540451,1756660912044,-233.58949047,0.0001683,2]
[382540452,1756660914920,-224.66406432,0.0001683,2]
[382540453,1756660918899,-286.02769626,0.0001683,2]
[382540454,1756660921541,-152.19350763,0.0001683,2]
[382540455,1756660924651,-263.533007,0.0001683,2]
[382540456,1756660924675,-46.51463195,0.00017,2]
[382540457,1756660928093,-104.25920729,0.00017,2]
[382540458,1756660928116,-244.63364249,0.00017,2]
[382540460,1756660930020,-366.98159628,0.00017,2]
[382540461,1756660930269,1358.350203,0.00013699,2]
[382540462,1756660935636,-295.20917277,0.00017,2]
[382540463,1756660938669,-200.0,0.0001683,2]
[382540464,1756660943322,-306.99465509,0.0001683,2]
[382540465,1756660946086,-200.0,0.0001683,2]
[382540466,1756660951897,-168.0,0.0001683,2]
[382540467,1756660955342,-186.46619842,0.0001683,2]
[382540468,1756660957896,-593.1792054,0.0001683,2]
[382540469,1756660960307,-203.95911309,0.0001683,2]
[382540470,1756660962537,-183.28086761,0.0001683,2]
[382540471,1756660965504,-276.7311791,0.0001683,2]
[382540472,1756660969736,-329.29289319,0.0001683,2]
[382540473,1756660973578,-199.4684622,0.0001683,2]
[382540474,1756660975783,-200.0,0.0001683,2]
[382540475,1756660979209,-178.37004141,0.0001683,2]
[382540476,1756660981296,-265.27243582,0.0001683,2]
[382540477,1756660985692,-319.93439119,0.0001683,2]
[382540478,1756660989266,-160.78583715,0.0001683,2]
[382540479,1756660991879,-455.85678183,0.0001683,2]
[382540480,1756660994745,-313.63736305,0.0001683,2]
[382540481,1756660997183,-268.1740201,0.00016662,2]
[382540482,1756660999053,-154.28168867,0.00016662,2]
[382540483,1756661001643,-168.60608282,0.00016662,2]
[382540484,1756661004453,-446.12187677,0.00016662,2]
[382540485,1756661006802,-151.56897983,0.00016662,2]
[382540486,1756661008707,-167.30690623,0.00016662,2]
[382540487,1756661011876,-219.6924736,0.00016662,2]
[382540488,1756661014695,-171.33767119,0.00016662,2]
[382540489,1756661017855,-227.52554716,0.00016662,2]
[382540490,1756661019937,-264.49017865,0.00016662,2]
[382540491,1756661022017,-307.92286614,0.00016662,2]
[382540492,1756661024052,-152.0,0.00016662,2]
[382540493,1756661026700,-172.3908357,0.00016662,2]
[382540494,1756661028386,-156.22643591,0.00016662,2]
[382540495,1756661030194,-284.90876191,0.00016662,2]
[382540496,1756661031634,-205.77018515,0.00016662,2]
[382540497,1756661033840,-226.81347349,0.00016662,2]
[382540511,1756661036514,-152.65662732,0.00016662,2]
[382540512,1756661040320,-240.53584913,0.00016662,2]
[382540513,1756661044169,-187.49038957,0.00016662,2]
[382540514,1756661045713,-194.82291482,0.00016562,2]
[382540515,1756661047799,-38.76657565,0.00016562,2]
[382540516,1756661047828,-233.09979577,0.00016662,2]
[382540518,1756661050227,-171.45688115,0.00016662,2]
[382540519,1756661053767,-205.47882809,0.00016662,2]
[382540520,1756661056377,-64.14364565,0.00016662,2]
[382540521,1756661056398,-132.86117016,0.00016662,2]
[382540523,1756661058546,-27.13882984,0.00016662,2]
[382540524,1756661058569,-172.86117016,0.0001683,2]
[382540525,1756661061087,-85.90940529,0.0001683,2]
[382540526,1756661062509,-329.30984606,0.00016662,2]
[382540528,1756661064757,-167.3945075,0.00016662,2]
[382540529,1756661067665,-153.01102579,0.00016662,2]
[382540530,1756661069614,5000.0,0.000165,2]
[382540531,1756661070388,-232.12252053,0.00016662,2]
[382540533,1756661072985,-291.38211966,0.00016662,2]
[382540534,1756661074611,-164.69517072,0.00016662,2]
[382540536,1756661080116,10000.0,0.00016244,2]
[382540537,1756661084410,-271.49878517,0.00016662,2]
[382540539,1756661087030,-152.50946757,0.00016662,2]
[382540540,1756661088592,-244.97043413,0.00016662,2]
[382540541,1756661092301,-220.04762689,0.00016662,2]
[382540543,1756661093158,5000.0,0.000165,2]
[382540544,1756661094417,-203.39422408,0.00016662,2]
[382540545,1756661095974,-162.42712842,0.00016662,2]
[382540547,1756661100564,-176.488107,0.00016662,2]
[382540548,1756661102252,-239.43325579,0.00016662,2]
[382540549,1756661104966,-223.14820067,0.00016662,2]
[382540550,1756661106481,-217.13076283,0.00016662,2]
[382540553,1756661109535,-273.62823178,0.00016662,2]
[382540554,1756661112084,-168.0,0.00016662,2]
[382540555,1756661114325,-211.28758646,0.00016662,2]
[382540557,1756661116390,5000.0,0.000165,2]
[382540558,1756661118057,-228.54871323,0.00016662,2]
[382540559,1756661120397,-314.25209458,0.00016662,2]
[382540561,1756661123177,-313.68341404,0.00016662,2]
[382540562,1756661126463,-41.6367771,0.00016662,2]
[382540564,1756661133020,-189.3994798,0.00016978,2]
[382540565,1756661136003,-361.55468899,0.00016978,2]
[382540567,1756661138297,-535.42310717,0.00016978,2]
[382540568,1756661140694,-179.128694,0.00016808,2]
[382540569,1756661143580,-231.80139916,0.00016808,2]
[382540571,1756661145718,-260.19932229,0.00016808,2]
[382540572,1756661149951,-303.8114615,0.00016808,2]
[382540574,1756661152344,-487.18950886,0.00016808,2]
[382540575,1756661155008,-198.95215553,0.00016808,2]
[382540576,1756661157493,-221.97923717,0.00016808,2]
[382540578,1756661159303,-257.28813394,0.00016808,2]
[382540579,1756661161562,-151.0,0.00016808,2]
[382540580,1756661163218,-193.38124444,0.00016808,2]
[382540581,1756661165321,-153.86013833,0.00016808,2]
[382540583,1756661167472,-186.41366048,0.00016808,2]
[382540584,1756661169704,-151.34458855,0.00016808,2]
[382540586,1756661173039,-187.25532479,0.00016808,2]
[382540589,1756661179265,-200.0,0.00016808,2]
[382540591,1756661182958,-394.31875208,0.00016808,2]
[382540592,1756661186120,-294.0964283,0.00016808,2]
[382540594,1756661192696,-249.71944089,0.00016808,2]
[382540596,1756661196267,-249.28840296,0.00016808,2]
[382540597,1756661197953,-350.15358644,0.00016808,2]
[382540598,1756661200263,-98.81852029,0.00016808,2]
[382540599,1756661200286,-157.94745058,0.00016878,2]
[382540600,1756661202223,-27.7354931,0.00016878,2]
[382540601,1756661202247,-291.48900701,0.00016978,2]
[382540603,1756661204953,-169.91423159,0.00016978,2]
[382540604,1756661208184,-257.76987424,0.00016808,2]
[382540606,1756661214830,-234.21051928,0.00016808,2]
[382540607,1756661216787,-175.54632062,0.00016808,2]
[382540609,1756661219419,-306.34311722,0.00016808,2]
[382540610,1756661222189,-166.36263695,0.00016808,2]
[382540611,1756661223654,-229.55263649,0.00016808,2]
[382540613,1756661226346,-250.45980413,0.00016808,2]
[382540614,1756661229215,-270.86907218,0.00016808,2]
[382540615,1756661231352,-341.77287629,0.00016808,2]
[382540617,1756661234637,-203.86458159,0.00016808,2]
[382540618,1756661238306,-160.93290096,0.00016808,2]
[382540620,1756661241071,-166.76214343,0.00016808,2]
[382540623,1756661246634,-302.63167194,0.00016808,2]
[382540626,1756661251603,-306.21248037,0.00016808,2]
[382540628,1756661254418,-163.85006088,0.00016808,2]
[382540632,1756661257231,-438.65053247,0.00016808,2]
[382540633,1756661259300,-220.21225483,0.00016808,2]
[382540635,1756661260914,-177.2687627,0.00016808,2]
[382540636,1756661265244,-255.57776602,0.00016808,2]
[382540638,1756661270145,-219.79253407,0.00016808,2]
[382540639,1756661272228,-151.35745334,0.00016808,2]
[382540640,1756661272253,-3.93201482,0.00016978,2]
[382540641,1756661273874,-155.54805451,0.00016978,2]
[382540643,1756661277370,-182.57324776,0.00016978,2]
[382540644,1756661279577,-199.84912844,0.00016978,2]
[382540646,1756661282628,680.3033226,0.00016241,2]
[382540647,1756661283143,-299.85556782,0.00016978,2]
[382540648,1756661288044,-270.6470374,0.00016978,2]
[382540649,1756661292900,-304.65542487,0.00016808,2]
[382540650,1756661295866,-238.87351805,0.00016808,2]
[382540653,1756661297258,417.66402659,0.00010618,2]
[382540654,1756661297946,-175.34825394,0.00016808,2]
[382540655,1756661299263,11451.81592072,0.000125,2]
[382540656,1756661301280,-238.84910253,0.00016808,2]
[382540657,1756661304084,-240.88097265,0.00016808,2]
[382540658,1756661305991,1000.56543186,0.00015,2]
[382540659,1756661306791,-152.30331985,0.00016808,2]
[382540660,1756661307242,213.869245,0.0001725,10]
[382540661,1756661309315,-361.29803929,0.00016808,2]
[382540662,1756661311475,-243.12297122,0.00016808,2]
[382540663,1756661312697,284.41141823,0.0001,2]
[382540664,1756661315350,-151.0,0.00016808,2]
[382540666,1756661317216,-324.40195365,0.00016808,2]
[382540668,1756661321008,-271.43025014,0.00016808,2]
[382540669,1756661322875,584.21175831,0.000149,2]
[382540670,1756661322963,1000.0,0.0001,2]
[382540673,1756661325211,301.999999,0.00030914,120]
[382540675,1756661327096,-241.19932229,0.00016808,2]
[382540676,1756661327240,212.01052399,0.00016,2]
[382540677,1756661328953,5000.0,0.000165,2]
[382540679,1756661329859,-228.55692904,0.00016808,2]
[382540681,1756661332078,-314.73030079,0.00016808,2]
[382540682,1756661334868,-171.55529494,0.00016808,2]
[382540683,1756661335428,71874.9489282,0.00016238,2]
[382540685,1756661338574,-417.10337557,0.00016808,2]
[382540686,1756661341929,-254.11079338,0.00016808,2]
[382540688,1756661346142,-257.53028611,0.00016808,2]
[382540689,1756661349056,-307.73833342,0.00016808,2]
[382540691,1756661351166,-105.31155827,0.00016808,2]
[382540692,1756661351189,-50.17752264,0.00016999,2]
[382540694,1756661351852,5000.0,0.000165,2]
[382540697,1756661354076,-249.82247736,0.00016999,2]
[382540698,1756661354100,-42.55686338,0.00017,2]
[382540701,1756661357900,-390.87502277,0.00017,2]
[382540702,1756661362007,-194.10088652,0.0001683,2]
[382540703,1756661364307,-194.1144467,0.0001683,2]
[382540704,1756661365728,-275.99296136,0.0001683,2]
[382540706,1756661368031,-352.53882367,0.0001683,2]
[382540707,1756661373545,-153.46117633,0.0001683,2]
[382540732,1756661432540,-5000.0,0.00016662,2]
[382540733,1756661432550,-1200.0,0.00016829,2]
[382540734,1756661432560,-3829.79170542,0.0001683,2]
[382540735,1756661432569,-300.0,0.00016999,2]
[382540736,1756661432579,-300.0,0.00016999,2]
[382540737,1756661432589,-300.0,0.00016999,2]
[382540738,1756661432598,-300.0,0.00016999,2]
[382540739,1756661432607,-91466.04921852,0.00017,2]
[382540740,1756661432623,-9053.11904439,0.00017,2]
[382540741,1756661432632,-194.1144467,0.0001705,2]
[382540742,1756661432641,-507.75146921,0.0001715,2]
[382540743,1756661432650,-507.75146919,0.00017218,2]
[382540744,1756661432659,-1200.0,0.00017238,2]
[382540745,1756661432668,-275.99,0.00017238,3]
[382540746,1756661432676,-862.96,0.0001724,3]
[382540747,1756661432683,-536.49,0.0001724,3]
[382540748,1756661432689,-307.67,0.0001724,3]
[382540749,1756661432697,-153.83,0.0001724,3]
[382540750,1756661432704,-461.53,0.0001724,3]
[382540751,1756661432711,-253.94117193,0.00017246,2]
[382540752,1756661432720,-480.0,0.00017247,2]
[382540753,1756661432727,-480.0,0.00017247,2]
[382540754,1756661432735,-818.04,0.00017247,2]
[382540755,1756661432744,-1054.64,0.00017247,2]
[382540756,1756661432754,-480.0,0.00017247,2]
[382540757,1756661432763,-480.0,0.00017247,2]
[382540758,1756661432772,-984.78,0.00017247,2]
[382540759,1756661432781,-759.6,0.00017247,2]
[382540760,1756661432789,-480.0,0.00017248,2]
[382540761,1756661432798,-527.34,0.00017248,2]
[382540762,1756661432807,-480.0,0.00017248,2]
[382540763,1756661432816,-1447.22,0.00017248,2]
[382540764,1756661432825,-400.0,0.00017248,2]
[382540765,1756661432834,-480.0,0.00017248,2]
[382540766,1756661432843,-480.0,0.00017248,2]
[382540767,1756661432852,-780.41,0.00017248,2]
[382540768,1756661432861,-965.49,0.00017248,2]
[382540769,1756661432870,-998.65,0.00017248,2]
[382540770,1756661432879,-848.91,0.00017248,2]
[382540771,1756661432888,-480.0,0.00017248,2]
[382540772,1756661432899,-490.03,0.00017248,2]
[382540773,1756661432908,-480.0,0.00017248,2]
[382540774,1756661432917,-480.0,0.00017248,2]
[382540775,1756661432926,-535.92,0.00017248,2]
[382540776,1756661432935,-664.27,0.00017248,2]
[382540777,1756661432944,-480.0,0.00017248,2]
[382540778,1756661432953,-480.0,0.00017248,2]
[382540779,1756661432962,-783.32,0.00017248,2]
[382540780,1756661432971,-650.72,0.00017248,2]
[382540781,1756661432980,-491.11,0.00017248,2]
[382540782,1756661432989,-966.03,0.00017248,2]
[382540783,1756661432998,-480.0,0.00017248,2]
[382540784,1756661433007,-1140.0,0.00017248,2]
[382540785,1756661433018,-549.21,0.00017248,2]
[382540786,1756661433034,-534.54,0.00017248,2]
[382540787,1756661433045,-480.0,0.00017248,2]
[382540788,1756661433058,-998.53,0.00017248,2]
[382540789,1756661433068,-480.0,0.00017248,2]
[382540790,1756661433077,-636.27,0.00017248,2]
[382540791,1756661433087,-480.0,0.00017248,2]
[382540792,1756661433097,-480.0,0.00017248,2]
[382540793,1756661433107,-625.35,0.00017248,2]
[382540794,1756661433116,-480.0,0.00017248,2]
[382540795,1756661433125,-480.0,0.00017248,2]
[382540796,1756661433134,-481.86,0.00017248,2]
[382540797,1756661433143,-480.0,0.00017248,2]
[382540798,1756661433153,-480.0,0.00017248,2]
[382540799,1756661433167,-878.63,0.00017248,2]
[382540800,1756661433177,-480.0,0.00017248,2]
[382540801,1756661433186,-526.74,0.00017248,2]
[382540802,1756661433196,-480.0,0.00017248,2]
[382540803,1756661433205,-528.1,0.00017248,2]
[382540804,1756661433215,-792.21,0.00017248,2]
[382540805,1756661433223,-696.0,0.00017248,2]
[382540806,1756661433232,-917.5,0.00017248,2]
[382540807,1756661433241,-480.0,0.00017248,2]
[382540808,1756661433251,-1981.48,0.00017248,2]
[382540809,1756661433260,-480.0,0.00017248,2]
[382540810,1756661433269,-478.8345869,0.00017248,2]
[382540811,1756661438415,-163.85006088,0.00016999,2]
[382540812,1756661438425,-177.2687627,0.00016999,2]
[382540813,1756661438434,-222.93463941,0.00016999,2]
[382540814,1756661438443,-500.0,0.00016999,2]
[382540815,1756661438452,-420.86460663,0.00016999,2]
[382540816,1756661438461,-500.0,0.00016999,2]
[382540817,1756661438470,-572.37,0.0001724,3]
[382540818,1756661438478,-292.37934074,0.00017247,2]
[382540819,1756661438486,-1092.5,0.00017247,2]
[382540820,1756661438494,-376.78368623,0.00017247,2]
[382540821,1756661438502,-1.1654131,0.00017248,2]
[382540822,1756661438510,-480.0,0.00017248,2]
[382540823,1756661438517,-501.24,0.00017248,2]
[382540824,1756661438526,-480.0,0.00017248,2]
[382540825,1756661438534,-480.0,0.00017248,2]
[382540826,1756661438542,-1066.69,0.00017248,2]
[382540827,1756661438552,-480.0,0.00017248,2]
[382540828,1756661438561,-803.67,0.00017248,2]
[382540829,1756661438570,-480.0,0.00017248,2]
[382540830,1756661438579,-480.0,0.00017248,2]
[382540831,1756661438588,-480.0,0.00017248,2]
[382540832,1756661438597,-489.0,0.00017248,2]
[382540833,1756661438606,-1157.35,0.00017248,2]
[382540834,1756661438615,-480.0,0.00017248,2]
[382540835,1756661438623,-1592.53,0.00017248,2]
[382540836,1756661438632,-696.23,0.00017248,2]
[382540837,1756661438641,-711.95,0.00017248,2]
[382540838,1756661438650,-480.0,0.00017248,2]
[382540839,1756661438659,-518.34,0.00017248,2]
[382540840,1756661438667,-532.35,0.00017248,2]
[382540841,1756661438677,-480.0,0.00017248,2]
[382540842,1756661438686,-480.0,0.00017248,2]
[382540843,1756661438694,-1551.09,0.00017248,2]
[382540844,1756661438703,-480.0,0.00017248,2]
[382540845,1756661438712,-480.0,0.00017248,2]
[382540846,1756661438722,-974.04,0.00017248,2]
[382540847,1756661438731,-480.0,0.00017248,2]
[382540848,1756661438740,-592.57,0.00017248,2]
[382540849,1756661438749,-480.0,0.00017248,2]
[382540850,1756661438758,-480.0,0.00017248,2]
[382540851,1756661438766,-480.0,0.00017248,2]
[382540852,1756661438775,-480.0,0.00017248,2]
[382540853,1756661438784,-480.0,0.00017248,2]
[382540854,1756661438793,-480.0,0.00017248,2]
[382540855,1756661438802,-480.0,0.00017248,2]
[382540856,1756661438811,-623.6,0.00017248,2]
[382540857,1756661438819,-238.65494765,0.00017248,2]
[382540858,1756661438828,-480.0,0.00017249,2]
[382540859,1756661438837,-480.0,0.00017249,2]
[382540860,1756661438845,-480.0,0.00017249,2]
[382540861,1756661438854,-480.0,0.00017249,2]
[382540862,1756661438863,-480.0,0.00017249,2]
[382540863,1756661438872,-480.0,0.00017249,2]
[382540864,1756661438881,-480.0,0.00017249,2]
[382540865,1756661438890,-605.31,0.00017249,2]
[382540866,1756661438899,-480.0,0.00017249,2]
[382540867,1756661438908,-480.0,0.00017249,2]
[382540868,1756661438917,-482.84,0.00017249,2]
[382540869,1756661438926,-480.0,0.00017249,2]
[382540870,1756661438935,-480.0,0.00017249,2]
[382540871,1756661438944,-480.0,0.00017249,2]
[382540872,1756661438953,-480.0,0.00017249,2]
[382540873,1756661438962,-492.95,0.00017249,2]
[382540874,1756661438971,-480.0,0.00017249,2]
[382540875,1756661438979,-498.68,0.00017249,2]
[382540876,1756661438988,-480.0,0.00017249,2]
[382540877,1756661438997,-480.0,0.00017249,2]
[382540878,1756661439006,-480.0,0.00017249,2]
[382540879,1756661439015,-623.57,0.00017249,2]
[382540880,1756661439026,-727.17,0.00017249,2]
[382540881,1756661439035,-480.0,0.00017249,2]
[382540882,1756661439044,-708.64,0.00017249,2]
[382540883,1756661439052,-480.0,0.00017249,2]
[382540884,1756661439062,-480.0,0.00017249,2]
[382540885,1756661439071,-480.0,0.00017249,2]
[382540886,1756661439080,-480.0,0.00017249,2]
[382540887,1756661439090,-480.0,0.00017249,2]
[382540888,1756661439102,-480.0,0.00017249,2]
[382540889,1756661439112,-480.0,0.00017249,2]
[382540890,1756661439121,-480.0,0.00017249,2]
[382540891,1756661439131,-480.0,0.00017249,2]
[382540892,1756661439140,-817.39,0.00017249,2]
[382540893,1756661439149,-480.0,0.00017249,2]
[382540895,1756661439159,-480.0,0.00017249,2]
[382540897,1756661439168,-480.0,0.00017249,2]
[382540898,1756661439177,-302.5322839,0.00017249,2]
[382540899,1756661439187,-480.0,0.00017249,2]
[382540900,1756661439199,-480.0,0.00017249,2]
[382540902,1756661439208,-480.0,0.00017249,2]
[382540904,1756661439217,-480.0,0.00017249,2]
[382540906,1756661439227,-480.0,0.00017249,2]
[382540908,1756661439238,-480.0,0.00017249,2]
[382540910,1756661439247,-480.0,0.00017249,2]
[382540912,1756661439256,-480.0,0.00017249,2]
[382540914,1756661439265,-491.55237605,0.00017249,2]
[382540916,1756661439274,-480.0,0.00017249,2]
[382540918,1756661439284,-480.0,0.00017249,2]
[382540920,1756661439293,-480.0,0.00017249,2]
[382540922,1756661439302,-480.0,0.00017249,2]
[382540924,1756661439311,-480.0,0.00017249,2]
[382540926,1756661439321,-480.0,0.00017249,2]
[382540928,1756661439330,-1115.55,0.00017249,2]
[382540930,1756661439339,-480.0,0.00017249,2]
[382540932,1756661439348,-480.0,0.00017249,2]
[382540934,1756661439357,-480.0,0.00017249,2]
[382540956,1756661439552,-480.0,0.00017249,2]
[382540959,1756661439563,-480.0,0.00017249,2]
[382540961,1756661439573,-480.0,0.00017249,2]
[382540963,1756661439582,-480.0,0.00017249,2]
[382540965,1756661439592,-3078.2,0.00017249,2]
[382540966,1756661439602,-296.00705477,0.00017249,2]
[382540968,1756661439611,-480.0,0.00017249,2]
[382540970,1756661439623,-757.71,0.00017249,2]
[382540972,1756661439633,-1841.23,0.00017249,2]
[382540974,1756661439643,-918.22,0.00017249,2]
[382540976,1756661439652,-847.4,0.00017249,2]
[382540978,1756661439662,-540.75,0.00017249,2]
[382540980,1756661439673,-480.0,0.00017249,2]
[382540982,1756661439683,-480.0,0.00017249,2]
[382540984,1756661439694,-480.0,0.00017249,2]
[382540986,1756661439704,-5213.5,0.00017249,2]
[382540988,1756661439715,-3146.52,0.00017249,2]
[382540990,1756661439725,-884.64,0.00017249,2]
[382540992,1756661439735,-480.0,0.00017249,2]
[382540994,1756661439746,-592.25,0.00017249,2]
[382540996,1756661439756,-1159.91,0.00017249,2]
[382540998,1756661439766,-480.0,0.00017249,2]
[382541000,1756661439775,-1073.41,0.00017249,2]
[382541002,1756661439785,-1432.05,0.00017249,2]
[382541004,1756661439794,-480.0,0.00017249,2]
[382541006,1756661439804,-480.0,0.00017249,2]
[382541008,1756661439814,-480.0,0.00017249,2]
[382541010,1756661439823,-480.0,0.00017249,2]
[382541012,1756661439833,-586.44,0.00017249,2]
[382541014,1756661439843,-776.09,0.00017249,2]
[382541016,1756661439852,-480.0,0.00017249,2]
[382541018,1756661439862,-1157.17,0.00017249,2]
[382541020,1756661439871,-480.0,0.00017249,2]
[382541022,1756661439881,-480.0,0.00017249,2]
[382541024,1756661439890,-537.41,0.00017249,2]
[382541026,1756661439900,-521.2,0.00017249,2]
[382541028,1756661439909,-480.0,0.00017249,2]
[382541030,1756661439921,-3576.08,0.00017249,2]
[382541032,1756661439931,-480.0,0.00017249,2]
[382541034,1756661439940,-480.0,0.00017249,2]
[382541036,1756661439949,-1202.77,0.00017249,2]
[382541038,1756661439960,-4693.11,0.00017249,2]
[382541040,1756661439970,-480.0,0.00017249,2]
[382541042,1756661439979,-480.0,0.00017249,2]
[382541044,1756661439989,-480.0,0.00017249,2]
[382541046,1756661439998,-480.0,0.00017249,2]
[382541048,1756661440008,-480.0,0.00017249,2]
[382541050,1756661440020,-1996.21,0.00017249,2]
[382541053,1756661440031,-1118.32,0.00017249,2]
[382541055,1756661440041,-480.0,0.00017249,2]
[382541057,1756661440051,-519.51,0.00017249,2]
[382541059,1756661440061,-480.0,0.00017249,2]
[382541061,1756661440070,-893.05,0.00017249,2]
[382541063,1756661440079,-480.0,0.00017249,2]
[382541065,1756661440089,-480.0,0.00017249,2]
[382541067,1756661440099,-984.31,0.00017249,2]
[382541069,1756661440109,-480.0,0.00017249,2]
[382541071,1756661440118,-347.7394083,0.00017249,2]
[382541074,1756661440128,-480.0,0.00017249,2]
[382541077,1756661440137,-480.0,0.0001725,2]
[382541080,1756661440147,-480.0,0.0001725,2]
[382541082,1756661440157,-480.0,0.0001725,2]
[382541084,1756661440166,-155.7561095,0.0001725,2]
[382541086,1756661440177,-567.37918417,0.0001725,2]
[382541088,1756661440187,-480.0,0.0001725,2]
[382541090,1756661440197,-1165.53,0.0001725,2]
[382541092,1756661440207,-480.0,0.0001725,2]
[382541094,1756661440217,-480.0,0.0001725,2]
[382541096,1756661440227,-481.39767338,0.0001725,2]
[382541098,1756661440239,-480.0,0.0001725,2]
[382541100,1756661440249,-480.0,0.0001725,2]
[382541102,1756661440259,-480.0,0.0001725,2]
[382541104,1756661440268,-480.0,0.0001725,2]
[382541106,1756661440277,-538.37,0.0001725,2]
[382541108,1756661440287,-710.91,0.0001725,2]
[382541110,1756661440296,-420.51214231,0.0001725,2]
[382541112,1756661440306,-562.33,0.0001725,2]
[382541114,1756661440316,-480.0,0.0001725,2]
[382541116,1756661440326,-480.0,0.0001725,2]
[382541118,1756661440335,-480.0,0.0001725,2]
[382541120,1756661440345,-480.0,0.0001725,2]
[382541122,1756661440354,-590.26,0.0001725,2]
[382541124,1756661440364,-480.0,0.0001725,2]
[382541126,1756661440373,-519.58,0.0001725,2]
[382541128,1756661440383,-480.0,0.0001725,2]
[382541130,1756661440395,-480.0,0.0001725,2]
[382541132,1756661440406,-1000.0,0.0001725,2]
[382541134,1756661440415,-480.0,0.0001725,2]
[382541136,1756661440426,-480.0,0.0001725,2]
[382541138,1756661440435,-682.69,0.0001725,2]
[382541140,1756661440445,-785.3,0.0001725,2]
[382541142,1756661440459,-480.0,0.0001725,2]
[382541144,1756661440468,-745.53,0.0001725,2]